[Event "Marienbad Open-B2 2019"]
[Site "Marianske Lazne"]
[Date "2019.01.22"]
[Round "4"]
[White "Jurek, Josef"]
[Black "Cerveny, Petr"]
[Result "1-0"]
[ECO "E66"]
[WhiteElo "2273"]
[BlackElo "2318"]
[Annotator "NA"]
[PlyCount "79"]
[EventDate "2019.01.17"]
[EventType "tourn"]
[EventCountry "CZE"]
[SourceTitle "playchess.com"]
[Source "ChessBase"]
[SourceQuality "1"]
[TimeControl "40/5400+30:1800+30"]

1. Nf3 {[%emt 0:00:00]} d6 {[%emt 0:00:00]} 2. d4 {[%emt 0:00:01]} Nf6 {[%emt 0:00:00]} 3. c4 {[%emt 0:00:40]} g6 {[%emt 0:00:00]} 4. g3 {[%emt 0:00:35]} Bg7 {[%emt 0:00:03]} 5. Bg2 {[%emt 0:00:16]} O-O {[%emt 0:00:06]} 6. Nc3 {[%emt 0:00:32]} Nc6 {[%emt 0:00:17]} 7. O-O {[%emt 0:00:32]} a6 {[%emt 0:00:10]} 8. d5 {[%emt 0:01:59]} Na5 {[%emt 0:00:09]} 9. Nd2 {[%emt 0:00:19]} c5 {[%emt 0:00:09]} 10. Qc2 {[%emt 0:00:32]} b5 {[%emt 0:01:54]} 11. cxb5 {[%emt 0:00:39] E66: King's Indian: Fianchetto: 6...c5 7 0-0 Nc6 8 d5} axb5 {[%emt 0:00:13]} 12. Nxb5 {[%emt 0:00:17]} Qb6 {[%emt 0:01:02]} 13. Nc3 {[%emt 0:03:55]} Bf5 {[%emt 0:00:05]} 14. e4 {[%emt 0:03:35]} (14. Qd1 Rfb8 15. h3 Qa6 16. b3 c4 17. Bb2 Qc8 18. Kh2 Ra7 {0-1 (49) Ivanchuk,V (2753)-Giri,A (2734) Leon 2013}) 14... Bc8 {[%emt 0:00:07]} 15. h3 {[%emt 0:08:12] LiveBook: 7 Games} Ba6 {[%emt 0:02:04]} 16. Re1 {[%emt 0:12:49]} Nd7 {[%emt 0:01:37]} 17. Nf3 {[%emt 0:05:07]} Rfb8 $146 {[%emt 0:06:26]} ({Predecessor:} 17... Ne5 18. Nxe5 Bxe5 {½-½ (36) Neckar,L (2318)-Ratsma,R (2133) Schwarzach 2016}) 18. Rb1 {[%emt 0:04:01]} Qb4 {[%emt 0:06:59]} 19. Bg5 {[%emt 0:12:51]} Kf8 {[%emt 0:37:27]} 20. e5 {[%emt 0:07:32]} Nxe5 {[%emt 0:05:08]} 21. Nxe5 {[%emt 0:00:39]} dxe5 {[%emt 0:06:36]} 22. d6 {[%emt 0:02:44]} exd6 {[%emt 0:00:24] [#]} 23. Be7+ $1 {[%emt 0:01:20]} Kg8 {[%emt 0:01:00]} 24. Bxd6 {[%emt 0:01:17]} Nc4 {[%emt 0:02:24]} 25. Bxb8 {[%emt 0:03:52]} Rxb8 {[%emt 0:00:13]} 26. a3 {[%emt 0:12:43]} Qb6 {[%emt 0:08:38]} 27. Nd5 {[%emt 0:03:13]} Qd6 {[%emt 0:01:29]} 28. Red1 {[%emt 0:00:54]} Bf8 {[%emt 0:11:54]} 29. Nb4 {[%emt 0:04:54]} cxb4 {[%emt 0:01:15]} 30. Rxd6 {[%emt 0:00:11]} Bxd6 {[%emt 0:00:23]} 31. axb4 {[%emt 0:00:44]} Rxb4 {[%emt 0:01:09]} 32. Bd5 {[%emt 0:02:21]} Bf8 {[%emt 0:00:48]} 33. Bxc4 {[%emt 0:02:08]} Bxc4 {[%emt 0:00:38]} 34. Ra1 {[%emt 0:00:36]} Kg7 {[%emt 0:00:27]} 35. Ra8 {[%emt 0:01:42]} Be6 $2 {[%emt 0:03:38]} (35... Bd5) 36. Rxf8 {[%emt 0:01:15]} Rc4 {[%emt 0:00:11]} 37. Qxc4 $18 {[%emt 0:00:15]} Bxc4 {[%emt 0:00:42]} 38. Re8 {[%emt 0:00:56]} Kf6 {[%emt 0:00:06]} 39. b4 {[%emt 0:00:54]} g5 {[%emt 0:00:25]} 40. f3 {[%emt 0:01:16]} 1-0

[Event "Marienbad Open-B2 2019"]
[Site "Marianske Lazne"]
[Date "2019.01.22"]
[Round "4"]
[White "Lukasiewicz, Krzysztof"]
[Black "Ng, Jen Sheng"]
[Result "1/2-1/2"]
[ECO "A45"]
[WhiteElo "2223"]
[BlackElo "2075"]
[Annotator "NA"]
[PlyCount "57"]
[EventDate "2019.01.17"]
[EventType "tourn"]
[EventCountry "CZE"]
[SourceTitle "playchess.com"]
[Source "ChessBase"]
[SourceQuality "1"]
[TimeControl "40/5400+30:1800+30"]

1. d4 {[%emt 0:00:00]} Nf6 {[%emt 0:00:00]} 2. Bf4 {[%emt 0:00:00]} c5 {[%emt 0:00:00]} 3. d5 {[%emt 0:01:00]} b5 {[%emt 0:05:18]} 4. a4 {[%emt 0:04:14]} Bb7 {[%emt 0:06:56] LiveBook: 5 Games} 5. e4 {[%emt 0:02:07]} a6 {[%emt 0:14:31]} 6. axb5 {[%emt 0:07:18]} axb5 {[%emt 0:00:26]} (6... Nxe4 $14 7. Ne2 e6) 7. Rxa8 {[%emt 0:00:48]} Bxa8 {[%emt 0:00:05]} 8. Nc3 {[%emt 0:00:04]} b4 {[%emt 0:02:47]} 9. Nb5 {[%emt 0:02:03]} Na6 {[%emt 0:18:52]} 10. Qa1 {[%emt 0:08:21]} Bb7 {[%emt 0:00:08]} 11. f3 {[%emt 0:03:26]} Qb6 {[%emt 0:21:45]} 12. Nh3 {[%emt 0:12:37]} d6 {[%emt 0:07:14]} 13. Qa4 {[%emt 0:05:29]} Nd7 {[%emt 0:00:05]} 14. Ng5 {[%emt 0:00:35]} g6 {[%emt 0:06:53]} 15. Ne6 {[%emt 0:14:59]} fxe6 {[%emt 0:00:04]} 16. dxe6 {[%emt 0:00:04]} Bc6 {[%emt 0:00:03]} 17. Nxd6+ {[%emt 0:00:22]} exd6 {[%emt 0:00:14]} 18. exd7+ {[%emt 0:00:05]} Kxd7 {[%emt 0:00:12]} 19. Qxa6 {[%emt 0:00:05]} Qxa6 {[%emt 0:00:05]} 20. Bxa6 {[%emt 0:00:04]} Bg7 {[%emt 0:00:05]} 21. b3 {[%emt 0:04:58]} Ra8 {[%emt 0:00:48]} 22. Be2 {[%emt 0:00:06]} Ra1+ {[%emt 0:00:05]} 23. Bd1 {[%emt 0:00:05]} Bb5 {[%emt 0:00:21]} 24. Bd2 {[%emt 0:06:34]} Bd4 {[%emt 0:09:12]} 25. h4 {[%emt 0:01:06]} Ke6 26. h5 {[%emt 0:01:10]} Kf6 {[%emt 0:06:17]} 27. hxg6 {[%emt 0:00:06]} hxg6 {[%emt 0:00:01]} 28. Rh8 $11 {[%emt 0:10:16]} Be5 {[%emt 0:00:40]} 29. Be3 {[%emt 0:08:42]} 1/2-1/2

[Event "Marienbad Open-B2 2019"]
[Site "Marianske Lazne"]
[Date "2019.01.22"]
[Round "4"]
[White "Hesse, Henrik"]
[Black "German, Nikita"]
[Result "1-0"]
[ECO "A24"]
[WhiteElo "2166"]
[BlackElo "2162"]
[Annotator "NA RC"]
[PlyCount "63"]
[EventDate "2019.01.17"]
[EventType "tourn"]
[EventCountry "CZE"]
[SourceTitle "playchess.com"]
[Source "ChessBase"]
[SourceQuality "1"]
[TimeControl "40/5400+30:1800+30"]

1. c4 {[%emt 0:00:00]} Nf6 {[%emt 0:07:37]} 2. g3 {[%emt 0:00:00]} g6 {[%emt 0:00:14]} 3. Bg2 {[%emt 0:00:15]} Bg7 {[%emt 0:00:16]} 4. Nc3 {[%emt 0:00:16]} O-O {[%emt 0:00:28]} 5. e3 {[%emt 0:01:29]} d6 {[%emt 0:05:16]} 6. Nge2 {[%emt 0:02:36]} e5 {[%emt 0:01:11]} 7. O-O {[%emt 0:00:25]} Re8 {[%emt 0:01:23]} 8. d3 {[%emt 0:00:29]} Nbd7 {[%emt 0:00:59]} 9. Rb1 {[%emt 0:01:14]} a5 {[%emt 0:06:46]} 10. a3 {[%emt 0:00:21]} Nb6 {[%emt 0:09:47]} 11. b4 {[%emt 0:05:01]} axb4 {[%emt 0:15:57]} 12. axb4 {[%emt 0:08:07]} c6 {[%emt 0:03:06]} 13. b5 {[%emt 0:05:36]} Qc7 {[%emt 0:17:31]} 14. Qb3 {[%emt 0:07:54]} Nfd7 {[%emt 0:01:33]} 15. bxc6 {[%emt 0:00:42]} bxc6 {[%emt 0:00:20]} 16. Ba3 {[%emt 0:03:37]} Rb8 {[%emt 0:01:34]} 17. Bb4 {[%emt 0:03:38]} Nc5 {[%emt 0:06:16]} 18. Qa3 {[%emt 0:12:21]} Ra8 {[%emt 0:05:31]} 19. Ba5 {[%emt 0:00:32]} Nxc4 {[%emt 0:07:44]} 20. Qxc5 {[%emt 0:06:50]} Nxa5 {[%emt 0:00:24]} 21. Nb5 {[%emt 0:02:38]} Qd7 {[%emt 0:01:11]} 22. Nxd6 {[%emt 0:01:00]} Rd8 {[%emt 0:05:21]} 23. Nxc8 {[%emt 0:07:17]} Rdxc8 {[%emt 0:00:15]} 24. Rfd1 {[%emt 0:00:31]} Nb7 {[%emt 0:00:27]} 25. Qb6 {[%emt 0:00:37]} Rab8 {[%emt 0:00:45]} 26. d4 {[%emt 0:01:36]} Qe8 {[%emt 0:00:26]} 27. Qa7 {[%emt 0:01:42]} Rc7 {[%emt 0:00:39]} 28. d5 {[%emt 0:01:54]} Ra8 {[%emt 0:00:28]} 29. Qb6 {[%emt 0:00:11]} Qc8 {[%emt 0:00:19]} 30. d6 {[%emt 0:02:16]} Rd7 {[%emt 0:00:16]} 31. Bxc6 {[%emt 0:00:13]} Rxd6 {[%emt 0:00:48]} 32. Rxd6 {[%emt 0:00:11]} 1-0

[Event "Marienbad Open-B2 2019"]
[Site "Marianske Lazne"]
[Date "2019.01.22"]
[Round "5"]
[White "Frolov, Artur"]
[Black "Hesse, Henrik"]
[Result "1/2-1/2"]
[ECO "B48"]
[WhiteElo "2430"]
[BlackElo "2166"]
[Annotator "NA RC"]
[PlyCount "80"]
[EventDate "2019.01.17"]
[EventType "tourn"]
[EventCountry "CZE"]
[SourceTitle "playchess.com"]
[Source "ChessBase"]
[SourceQuality "1"]
[TimeControl "40/5400+30:1800+30"]

1. e4 {[%emt 0:00:00]} c5 {[%emt 0:00:06]} 2. Nf3 {[%emt 0:00:00]} e6 {[%emt 0:00:13]} 3. d4 {[%emt 0:00:00]} cxd4 {[%emt 0:00:16]} 4. Nxd4 {[%emt 0:00:00]} Nc6 {[%emt 0:00:15]} 5. Nc3 {[%emt 0:00:09]} Qc7 {[%emt 0:00:13]} 6. Be3 {[%emt 0:00:18]} a6 {[%emt 0:00:31]} 7. f3 {[%emt 0:00:24]} Nf6 {[%emt 0:00:28]} 8. Qd2 {[%emt 0:00:26]} Be7 {[%emt 0:01:02]} 9. g4 {[%emt 0:04:20]} b5 {[%emt 0:06:29]} 10. Nxc6 {[%emt 0:00:20]} dxc6 {[%emt 0:00:19]} 11. g5 {[%emt 0:01:41]} Nh5 {[%emt 0:04:45]} 12. Bh3 {[%emt 0:08:40]} e5 {[%emt 0:03:21]} 13. Bxc8 {[%emt 0:00:08]} Rxc8 {[%emt 0:04:47]} 14. O-O-O {[%emt 0:00:20]} O-O {[%emt 0:01:11]} 15. Qd7 {[%emt 0:03:37]} Rfd8 {[%emt 0:03:21]} 16. Qxc7 {[%emt 0:00:06]} Rxc7 {[%emt 0:03:02]} 17. Rxd8+ {[%emt 0:00:06]} Bxd8 {[%emt 0:00:05]} 18. Rd1 {[%emt 0:00:10]} Be7 {[%emt 0:00:10]} 19. Ne2 {[%emt 0:00:09]} Kf8 {[%emt 0:06:36]} 20. c4 {[%emt 0:02:23]} Ke8 {[%emt 0:05:14]} 21. Ng3 {[%emt 0:01:42]} Nxg3 {[%emt 0:05:36]} 22. hxg3 {[%emt 0:00:06]} Rd7 {[%emt 0:00:10]} 23. Rxd7 {[%emt 0:07:45]} Kxd7 {[%emt 0:00:16]} 24. Kc2 {[%emt 0:00:09]} Bb4 {[%emt 0:08:22]} 25. Kd3 {[%emt 0:04:30]} Kd6 {[%emt 0:05:07]} 26. b3 {[%emt 0:14:23]} Bc5 {[%emt 0:03:02]} 27. Bc1 {[%emt 0:01:40]} Bf2 {[%emt 0:03:15]} 28. g4 {[%emt 0:00:21]} b4 {[%emt 0:03:15]} 29. a3 {[%emt 0:04:42]} a5 {[%emt 0:00:23]} 30. a4 {[%emt 0:00:26]} c5 {[%emt 0:01:54]} 31. f4 {[%emt 0:05:28]} g6 {[%emt 0:12:45]} 32. Bb2 {[%emt 0:22:30]} Bd4 {[%emt 0:10:55]} 33. fxe5+ {[%emt 0:01:54]} Bxe5 {[%emt 0:00:35]} 34. Bc1 {[%emt 0:00:29]} Ke6 {[%emt 0:00:33]} 35. Be3 {[%emt 0:00:25]} Kd6 {[%emt 0:03:38]} 36. Ke2 {[%emt 0:01:19]} Kc6 {[%emt 0:00:24]} 37. Kf3 {[%emt 0:00:27]} Kd6 {[%emt 0:00:11]} 38. Bf4 {[%emt 0:01:26]} Ke6 {[%emt 0:00:57]} 39. Ke3 {[%emt 0:01:45]} Kd6 {[%emt 0:02:10]} 40. Kf3 {[%emt 0:00:13]} Ke6 {[%emt 0:00:23]} 1/2-1/2

[Event "Marienbad Open-B2 2019"]
[Site "Marianske Lazne"]
[Date "2019.01.22"]
[Round "5"]
[White "Kacharava, Nikolozi"]
[Black "Lukasiewicz, Krzysztof"]
[Result "1-0"]
[ECO "C54"]
[WhiteElo "2397"]
[BlackElo "2223"]
[Annotator "NA"]
[PlyCount "135"]
[EventDate "2019.01.17"]
[EventType "tourn"]
[EventCountry "CZE"]
[SourceTitle "playchess.com"]
[Source "ChessBase"]
[SourceQuality "1"]
[TimeControl "40/5400+30:1800+30"]

1. e4 {[%emt 0:00:00]} e5 {[%emt 0:00:00]} 2. Nf3 {[%emt 0:00:00]} Nc6 {[%emt 0:00:00]} 3. Bc4 {[%emt 0:00:19]} Bc5 {[%emt 0:00:04]} 4. c3 {[%emt 0:00:26]} Nf6 {[%emt 0:00:14]} 5. d3 {[%emt 0:00:17]} d6 {[%emt 0:00:05]} 6. O-O {[%emt 0:00:29]} O-O {[%emt 0:00:10]} 7. a4 {[%emt 0:00:34]} a5 {[%emt 0:00:12]} 8. Bg5 {[%emt 0:00:50]} h6 {[%emt 0:03:49]} 9. Bh4 {[%emt 0:00:22]} Ba7 {[%emt 0:21:18]} 10. Na3 {[%emt 0:02:55]} Be6 {[%emt 0:10:15]} 11. Re1 {[%emt 0:06:25]} Qe7 {[%emt 0:02:17]} 12. Bb5 {[%emt 0:17:15]} Nb8 {[%emt 0:16:02]} 13. d4 {[%emt 0:01:06]} c6 {[%emt 0:01:21]} 14. Bd3 {[%emt 0:09:10]} Nbd7 {[%emt 0:07:04]} 15. h3 {[%emt 0:01:36]} Rfe8 {[%emt 0:06:02]} 16. Nc4 {[%emt 0:08:45]} Bxc4 {[%emt 0:02:04]} 17. Bxc4 {[%emt 0:01:24]} Nf8 {[%emt 0:00:15]} 18. Bg3 {[%emt 0:14:05]} Rad8 {[%emt 0:08:04]} 19. Nh4 {[%emt 0:09:50]} g6 {[%emt 0:02:36]} 20. Qb3 {[%emt 0:04:10]} Nh5 {[%emt 0:03:51]} 21. Nf3 {[%emt 0:03:04]} Nxg3 {[%emt 0:00:59]} 22. fxg3 {[%emt 0:00:01]} Rd7 {[%emt 0:01:36]} 23. Kh2 {[%emt 0:00:57]} Kg7 {[%emt 0:00:04]} 24. Rf1 {[%emt 0:02:17]} Nh7 {[%emt 0:01:40]} 25. Rf2 {[%emt 0:05:00]} Rf8 {[%emt 0:04:10]} 26. Raf1 {[%emt 0:02:40]} Qe8 {[%emt 0:00:07]} 27. Rd2 {[%emt 0:01:34]} Nf6 {[%emt 0:02:22]} 28. dxe5 {[%emt 0:01:54]} Nxe4 {[%emt 0:00:07]} 29. Re2 {[%emt 0:00:30]} d5 {[%emt 0:00:06]} 30. Bd3 {[%emt 0:01:11]} Nc5 {[%emt 0:00:16]} 31. Qc2 {[%emt 0:00:25]} Re7 {[%emt 0:01:18]} 32. Rfe1 {[%emt 0:03:37]} Bb8 {[%emt 0:00:50]} 33. c4 {[%emt 0:01:27]} Nxd3 {[%emt 0:03:39]} 34. Qxd3 {[%emt 0:00:04]} dxc4 {[%emt 0:00:03]} 35. Qxc4 {[%emt 0:00:17]} Qd8 {[%emt 0:01:37]} 36. Qc3 {[%emt 0:02:06]} Rfe8 {[%emt 0:00:46]} 37. Rd2 {[%emt 0:00:43]} Qc7 {[%emt 0:00:08]} 38. Red1 {[%emt 0:00:30]} Kh7 {[%emt 0:00:49]} 39. Rd6 {[%emt 0:00:35]} Qb6 {[%emt 0:02:10]} 40. Rf6 {[%emt 0:00:21]} Rd8 {[%emt 0:00:58]} 41. Rf1 {[%emt 0:03:22]} Rdd7 {[%emt 0:13:25]} 42. e6 {[%emt 0:03:44]} fxe6 {[%emt 0:02:09]} 43. Rf8 {[%emt 0:01:04]} Bxg3+ {[%emt 0:01:36]} 44. Kxg3 {[%emt 0:00:55]} Qc7+ {[%emt 0:00:05]} 45. Qe5 {[%emt 0:05:08]} Qxe5+ {[%emt 0:00:49]} 46. Nxe5 {[%emt 0:00:05]} Rd5 {[%emt 0:00:06]} 47. Kf4 {[%emt 0:01:58]} Rd2 {[%emt 0:01:07]} 48. b3 {[%emt 0:07:07]} Rb2 {[%emt 0:01:24]} 49. Nc4 {[%emt 0:02:44]} Rxb3 {[%emt 0:02:04]} 50. Ke5 {[%emt 0:00:30]} Rb4 {[%emt 0:00:45]} 51. Nd6 {[%emt 0:01:48]} Rxa4 {[%emt 0:00:05]} 52. Kf6 {[%emt 0:02:55]} Rg7 {[%emt 0:01:36]} 53. Nf7 {[%emt 0:00:53]} Rg8 {[%emt 0:00:08]} 54. Rxg8 {[%emt 0:00:36]} Kxg8 {[%emt 0:00:03]} 55. Kxg6 {[%emt 0:00:26]} Kf8 {[%emt 0:00:06]} 56. Nd6+ {[%emt 0:00:29]} Ke7 {[%emt 0:00:05]} 57. Nxb7 {[%emt 0:00:10]} Ra2 {[%emt 0:00:14]} 58. Rf7+ {[%emt 0:00:32]} Ke8 {[%emt 0:00:04]} 59. g4 {[%emt 0:00:38]} Rh2 {[%emt 0:00:10]} 60. Nxa5 {[%emt 0:01:30]} Rxh3 {[%emt 0:00:06]} 61. Nxc6 {[%emt 0:01:05]} Rh4 {[%emt 0:00:42]} 62. Ne5 {[%emt 0:00:52]} Rh1 {[%emt 0:00:07]} 63. Rh7 {[%emt 0:00:26]} Re1 {[%emt 0:00:23]} 64. Kf6 {[%emt 0:00:13]} Rf1+ {[%emt 0:00:49]} 65. Kxe6 {[%emt 0:00:13]} Rf4 {[%emt 0:00:05]} 66. Rh8+ {[%emt 0:00:18]} Rf8 {[%emt 0:00:05]} 67. Rxf8+ {[%emt 0:00:11]} Kxf8 {[%emt 0:00:04]} 68. Kf6 1-0

[Event "Marienbad Open-B2 2019"]
[Site "Marianske Lazne"]
[Date "2019.01.22"]
[Round "5"]
[White "German, Nikita"]
[Black "Jurek, Josef"]
[Result "1/2-1/2"]
[ECO "C03"]
[WhiteElo "2162"]
[BlackElo "2273"]
[Annotator "NA"]
[PlyCount "31"]
[EventDate "2019.01.17"]
[EventType "tourn"]
[EventCountry "CZE"]
[SourceTitle "playchess.com"]
[Source "ChessBase"]
[SourceQuality "1"]
[TimeControl "40/5400+30:1800+30"]

1. e4 {[%emt 0:01:43]} e6 {[%emt 0:00:04]} 2. d4 {[%emt 0:00:18]} d5 {[%emt 0:00:12]} 3. Nd2 {[%emt 0:00:35]} Be7 {[%emt 0:00:46]} 4. Ngf3 {[%emt 0:01:20]} Nf6 {[%emt 0:00:18]} 5. Bd3 {[%emt 0:00:52]} c5 {[%emt 0:00:17]} 6. c3 {[%emt 0:07:07]} cxd4 {[%emt 0:03:41]} 7. Nxd4 {[%emt 0:06:57]} e5 {[%emt 0:05:06]} 8. N4f3 {[%emt 0:01:56]} Nc6 {[%emt 0:04:18]} 9. O-O {[%emt 0:03:06]} O-O {[%emt 0:03:48]} 10. Qe2 {[%emt 0:03:52]} Bg4 {[%emt 0:03:57]} 11. exd5 {[%emt 0:08:35]} Qxd5 {[%emt 0:02:29]} 12. Ne4 {[%emt 0:02:12]} Rad8 {[%emt 0:07:14]} 13. Nxf6+ {[%emt 0:01:32]} Bxf6 {[%emt 0:00:19]} 14. Be4 {[%emt 0:02:24]} Qe6 {[%emt 0:06:49]} 15. Qc2 {[%emt 0:02:19]} Kh8 {[%emt 0:03:39]} 16. Qd1 1/2-1/2

[Event "Marienbad Open-B2 2019"]
[Site "Marianske Lazne"]
[Date "2019.01.22"]
[Round "5"]
[White "Ng, Jen Sheng"]
[Black "Stigar, Petter"]
[Result "0-1"]
[ECO "C11"]
[WhiteElo "2075"]
[BlackElo "2177"]
[Annotator "NA"]
[PlyCount "108"]
[EventDate "2019.01.17"]
[EventType "tourn"]
[EventCountry "CZE"]
[SourceTitle "playchess.com"]
[Source "ChessBase"]
[SourceQuality "1"]
[TimeControl "40/5400+30:1800+30"]

1. e4 {[%emt 0:00:00]} e6 {[%emt 0:00:08]} 2. d4 {[%emt 0:00:00]} d5 {[%emt 0:00:07]} 3. Nc3 {[%emt 0:00:00]} Nf6 {[%emt 0:00:13]} 4. Bg5 {[%emt 0:00:00]} dxe4 {[%emt 0:00:09]} 5. Bxf6 {[%emt 0:00:31]} gxf6 {[%emt 0:03:05]} 6. Nxe4 {[%emt 0:00:04]} f5 {[%emt 0:01:45]} 7. Ng3 {[%emt 0:00:07]} c5 {[%emt 0:02:23]} 8. Nf3 {[%emt 0:03:06]} Nc6 {[%emt 0:03:53]} 9. Bd3 {[%emt 0:26:00]} cxd4 {[%emt 0:02:00]} 10. O-O {[%emt 0:01:13]} Bd7 {[%emt 0:08:53]} 11. Qe2 {[%emt 0:03:57]} Be7 {[%emt 0:01:01]} 12. Rfe1 {[%emt 0:05:09]} Qc7 {[%emt 0:08:23]} 13. Bb5 {[%emt 0:02:44]} O-O-O {[%emt 0:01:21]} 14. Rad1 {[%emt 0:02:20]} Bb4 {[%emt 0:06:31]} 15. Rf1 {[%emt 0:02:27]} Bc5 {[%emt 0:01:21]} 16. Qc4 {[%emt 0:03:46]} Bb6 {[%emt 0:17:55]} 17. Rfe1 {[%emt 0:08:37]} Rhg8 {[%emt 0:03:27]} 18. Re2 {[%emt 0:07:36]} Rg4 {[%emt 0:01:53]} 19. Bxc6 {[%emt 0:08:32]} Bxc6 {[%emt 0:00:08]} 20. Rd3 {[%emt 0:03:31]} Bxf3 {[%emt 0:07:29]} 21. Qxc7+ {[%emt 0:00:06]} Kxc7 {[%emt 0:01:06]} 22. Rxf3 {[%emt 0:00:44]} Rdg8 {[%emt 0:01:26]} 23. Rd3 {[%emt 0:00:17]} Rd8 {[%emt 0:09:00]} 24. Nf1 {[%emt 0:03:30]} Re4 {[%emt 0:02:27]} 25. Red2 {[%emt 0:03:45]} Re1 26. Rh3 {[%emt 0:02:54]} Rh8 {[%emt 0:01:09]} 27. c3 {[%emt 0:01:45]} dxc3 {[%emt 0:04:09]} 28. Rxc3+ {[%emt 0:00:01]} Kb8 {[%emt 0:00:10]} 29. b4 {[%emt 0:00:12]} Rc8 {[%emt 0:01:28]} 30. Rxc8+ {[%emt 0:04:32]} Kxc8 {[%emt 0:00:02]} 31. g3 {[%emt 0:00:30]} Rb1 {[%emt 0:01:06]} 32. a3 {[%emt 0:00:15]} Rb3 {[%emt 0:02:04]} 33. Ra2 {[%emt 0:00:01]} Bd4 {[%emt 0:00:34]} 34. Nd2 {[%emt 0:00:50]} Rb2 {[%emt 0:01:52]} 35. Rxb2 {[%emt 0:00:01]} Bxb2 {[%emt 0:00:10]} 36. Nc4 {[%emt 0:00:01]} Bc1 {[%emt 0:00:20]} 37. a4 {[%emt 0:00:13]} Kd7 {[%emt 0:00:15]} 38. f4 {[%emt 0:05:40]} f6 {[%emt 0:01:47]} 39. b5 e5 {[%emt 0:01:27]} 40. fxe5 {[%emt 0:03:09]} fxe5 {[%emt 0:00:07]} 41. Nxe5+ {[%emt 0:30:03]} Ke6 {[%emt 0:30:12]} 42. Nd3 {[%emt 0:00:00]} Be3+ {[%emt 0:00:00]} 43. Kg2 {[%emt 0:00:00]} Kd5 {[%emt 0:00:00]} 44. Kf3 {[%emt 0:00:00]} Bd2 {[%emt 0:00:00]} 45. Nf4+ {[%emt 0:00:00]} Kc4 {[%emt 0:00:00]} 46. Ne6 {[%emt 0:00:00]} Kb4 {[%emt 0:00:00]} 47. Nd8 {[%emt 0:00:00]} Kxa4 {[%emt 0:00:00]} 48. Nxb7 {[%emt 0:00:00]} Bb4 {[%emt 0:00:00]} 49. Nd8 {[%emt 0:05:44]} Kxb5 {[%emt 0:00:00]} 50. Ne6 {[%emt 0:00:29]} Kc4 {[%emt 0:00:00]} 51. Ng7 {[%emt 0:00:36]} Kd3 {[%emt 0:00:24]} 52. Nxf5 {[%emt 0:00:20]} a5 {[%emt 0:00:10]} 53. Ne3 {[%emt 0:00:19]} a4 {[%emt 0:00:39]} 54. Nd5 {[%emt 0:00:34]} Bd6 {[%emt 0:04:03]} 0-1

[Event "Marienbad Open-B2 2019"]
[Site "Marianske Lazne"]
[Date "2019.01.23"]
[Round "6"]
[White "Lukasiewicz, Krzysztof"]
[Black "Cerveny, Petr"]
[Result "0-1"]
[ECO "B86"]
[WhiteElo "2223"]
[BlackElo "2318"]
[Annotator "NA"]
[PlyCount "116"]
[EventDate "2019.01.17"]
[EventType "tourn"]
[EventCountry "CZE"]
[SourceTitle "playchess.com"]
[Source "ChessBase"]
[SourceQuality "1"]
[TimeControl "40/5400+30:1800+30"]

1. e4 {[%emt 0:02:17]} c5 {[%emt 0:00:00]} 2. Nf3 {[%emt 0:00:05]} d6 {[%emt 0:00:00]} 3. d4 {[%emt 0:00:03]} cxd4 {[%emt 0:00:00]} 4. Nxd4 {[%emt 0:00:03]} Nf6 {[%emt 0:00:00]} 5. Nc3 {[%emt 0:00:03]} a6 {[%emt 0:00:00]} 6. Bc4 {[%emt 0:02:00]} e6 {[%emt 0:00:01]} 7. Bb3 {[%emt 0:00:02]} Be7 {[%emt 0:02:29]} 8. O-O {[%emt 0:00:20]} O-O {[%emt 0:00:37]} 9. Qf3 {[%emt 0:08:47]} Nbd7 {[%emt 0:04:32]} 10. Qg3 {[%emt 0:00:47]} Nc5 {[%emt 0:01:09]} 11. Bh6 {[%emt 0:02:30]} Ne8 {[%emt 0:00:24]} 12. Be3 {[%emt 0:02:39]} Bh4 {[%emt 0:08:29]} 13. Qg4 {[%emt 0:11:34]} Bf6 {[%emt 0:02:46]} 14. Qe2 {[%emt 0:04:00]} b5 {[%emt 0:08:35]} 15. e5 {[%emt 0:16:42]} dxe5 {[%emt 0:34:58]} 16. Nc6 {[%emt 0:00:58]} Qd6 {[%emt 0:02:26]} 17. Na5 {[%emt 0:03:13]} Be7 {[%emt 0:05:27]} 18. Qf3 {[%emt 0:03:13]} Rb8 {[%emt 0:02:53]} 19. Rfd1 {[%emt 0:12:52]} Qc7 {[%emt 0:00:35]} 20. Nc6 {[%emt 0:00:49]} Bb7 {[%emt 0:00:51]} 21. Nxe7+ {[%emt 0:01:08]} Qxe7 {[%emt 0:00:05]} 22. Qg3 {[%emt 0:00:11]} Nxb3 {[%emt 0:10:01]} 23. axb3 {[%emt 0:00:29]} f6 {[%emt 0:01:03]} 24. Ba7 {[%emt 0:03:12]} Rc8 {[%emt 0:01:32]} 25. Qe3 {[%emt 0:00:52]} Rf7 {[%emt 0:01:13]} 26. Bb6 {[%emt 0:00:13]} Nd6 {[%emt 0:01:46]} 27. Bc5 {[%emt 0:01:12]} Nf5 {[%emt 0:00:18]} 28. Bxe7 {[%emt 0:01:23]} Nxe3 {[%emt 0:00:05]} 29. fxe3 {[%emt 0:00:14]} Rxe7 {[%emt 0:00:05]} 30. Rd2 {[%emt 0:00:04]} Kf7 {[%emt 0:01:23]} 31. Rad1 {[%emt 0:00:06]} Rec7 {[%emt 0:01:04]} 32. b4 {[%emt 0:02:40]} Ke7 {[%emt 0:00:28]} 33. Na2 {[%emt 0:00:25]} Bd5 {[%emt 0:00:29]} 34. Nc3 {[%emt 0:00:05]} Bc6 {[%emt 0:01:19]} 35. Ne2 {[%emt 0:00:17]} Rd7 {[%emt 0:03:41]} 36. Nc1 {[%emt 0:00:27]} Rxd2 {[%emt 0:00:33]} 37. Rxd2 {[%emt 0:00:24]} Be4 {[%emt 0:00:41]} 38. c3 {[%emt 0:00:04]} Bd5 {[%emt 0:00:23]} 39. Nd3 {[%emt 0:01:27]} e4 {[%emt 0:00:55]} 40. Nc5 {[%emt 0:03:35]} a5 {[%emt 0:00:45]} 41. Na6 {[%emt 0:31:35]} Rc6 {[%emt 0:33:28]} 42. Nc5 {[%emt 0:00:51]} axb4 {[%emt 0:00:51]} 43. cxb4 {[%emt 0:00:05]} Rc7 {[%emt 0:00:22]} 44. Kf2 {[%emt 0:00:16]} Ra7 {[%emt 0:00:56]} 45. Kg3 {[%emt 0:00:11]} f5 {[%emt 0:00:24]} 46. Kf4 {[%emt 0:01:04]} Kd6 {[%emt 0:00:00]} 47. g4 {[%emt 0:00:00]} Rf7 {[%emt 0:00:00]} 48. gxf5 {[%emt 0:00:00]} Rxf5+ {[%emt 0:00:00]} 49. Kg4 {[%emt 0:00:00]} Ke7 {[%emt 0:00:00]} 50. Rd4 {[%emt 0:00:00]} Rf2 {[%emt 0:00:00]} 51. Nxe4 {[%emt 0:00:00]} Rxh2 {[%emt 0:00:00]} 52. Nd2 {[%emt 0:00:00]} Rg2+ {[%emt 0:00:00]} 53. Kh3 {[%emt 0:00:00]} Re2 {[%emt 0:00:00]} 54. e4 {[%emt 0:00:00]} Bc6 {[%emt 0:00:00]} 55. Kg3 {[%emt 0:00:00]} e5 {[%emt 0:00:23]} 56. Kf3 {[%emt 0:00:00]} Rh2 {[%emt 0:00:26]} 57. Kg3 {[%emt 0:00:00]} exd4 {[%emt 0:00:37]} 58. Kxh2 {[%emt 0:00:00]} Kf6 {[%emt 0:00:58]} 0-1